[Event "Summer Prague Open-A 2024"]
[Site "Prague"]
[Date "2024.08.03"]
[Round "2.18"]
[White "Kuhn, Tobias"]
[Black "Galymbek, Alikhan"]
[Result "1/2-1/2"]
[Annotator "RC"]
[ECO "B40"]
[WhiteElo "2223"]
[BlackElo "1970"]
[PlyCount "89"]
[EventDate "2024.08.02"]
[EventType "swiss"]
[EventCountry "CZE"]
[SourceTitle "playchess.com"]
[Source "ChessBase"]
[SourceQuality "1"]
[TimeControl "40/5400+30:1800+30"]

1. e4 {[%emt 0:00:06]} c5 {[%emt 0:03:11]} 2. Nf3 {[%emt 0:00:12]} e6 {[%emt 0:00:06]} 3. d4 {[%emt 0:00:32]} cxd4 {[%emt 0:00:05]} 4. Nxd4 {[%emt 0:00:05]} Nf6 {[%emt 0:00:15]} 5. Nc3 {[%emt 0:01:23]} Nc6 {[%emt 0:00:07]} 6. Ndb5 {[%emt 0:00:30]} Bc5 {[%emt 0:00:20]} 7. Nd6+ {[%emt 0:00:55]} Ke7 {[%emt 0:00:06]} 8. Bf4 {[%emt 0:00:41]} e5 {[%emt 0:00:06]} 9. Nf5+ {[%emt 0:00:07]} Kf8 {[%emt 0:00:02]} 10. Bg5 {[%emt 0:00:13]} d6 {[%emt 0:00:11]} 11. Bc4 {[%emt 0:04:44]} Be6 {[%emt 0:00:31]} 12. Bb3 {[%emt 0:01:55]} h6 {[%emt 0:09:04]} 13. Be3 {[%emt 0:04:18]} Bb4 {[%emt 0:03:38]} 14. O-O {[%emt 0:13:07]} Bxb3 {[%emt 0:22:14]} 15. axb3 {[%emt 0:00:46]} g6 {[%emt 0:00:35]} 16. Ng3 {[%emt 0:02:43]} Kg7 {[%emt 0:03:19]} 17. Nd5 {[%emt 0:02:32]} Bc5 {[%emt 0:00:09]} 18. c3 {[%emt 0:10:23]} Bxe3 {[%emt 0:16:30]} 19. Nxe3 {[%emt 0:00:31]} h5 {[%emt 0:00:40]} 20. Qd3 {[%emt 0:04:20]} h4 {[%emt 0:00:56]} 21. Ne2 {[%emt 0:00:24]} Qb6 {[%emt 0:05:30]} 22. b4 {[%emt 0:03:24]} Rad8 {[%emt 0:00:33]} 23. b5 {[%emt 0:08:07]} Ne7 {[%emt 0:00:28]} 24. c4 {[%emt 0:01:07]} a6 {[%emt 0:06:16]} 25. bxa6 {[%emt 0:04:06]} bxa6 {[%emt 0:00:06]} 26. Nd5 {[%emt 0:06:26]} Nexd5 {[%emt 0:03:23]} 27. cxd5 {[%emt 0:00:21]} a5 {[%emt 0:01:35]} 28. Rfc1 {[%emt 0:03:56]} h3 {[%emt 0:00:37]} 29. gxh3 {[%emt 0:11:38]} Rh4 {[%emt 0:02:47]} 30. Ng3 {[%emt 0:02:55]} Rdh8 {[%emt 0:00:39]} 31. Rc6 {[%emt 0:05:07]} Qxb2 {[%emt 0:03:41]} 32. Rb1 {[%emt 0:00:16]} Qa2 {[%emt 0:00:05]} 33. Rxd6 {[%emt 0:00:50]} Rxh3 {[%emt 0:01:40]} 34. Rxf6 {[%emt 0:04:44]} Kxf6 {[%emt 0:00:09]} 35. Rb7 {[%emt 0:02:08]} Rxh2 {[%emt 0:08:47]} 36. Qf3+ {[%emt 0:00:16]} Kg5 {[%emt 0:00:00]} 37. Qe3+ {[%emt 0:00:56]} Kg4 {[%emt 0:00:36]} 38. Nf1 {[%emt 0:01:11]} R2h3 {[%emt 0:02:46]} 39. Nh2+ {[%emt 0:00:12]} Kh4 {[%emt 0:00:17]} 40. Nf3+ {[%emt 0:00:14]} Rxf3 {[%emt 0:01:19]} 41. Qxf3 {[%emt 0:30:10]} Qa1+ {[%emt 0:30:41]} 42. Kg2 {[%emt 0:00:38]} Kg5 {[%emt 0:00:06]} 43. Qg3+ {[%emt 0:00:00]} Kf6 {[%emt 0:00:00]} 44. Qf3+ {[%emt 0:00:00]} Kg5 {[%emt 0:00:00]} 45. Qg3+ 1/2-1/2

[Event "Summer Prague Open-A 2024"]
[Site "Prague"]
[Date "2024.08.03"]
[Round "2.19"]
[White "Roch, Florian"]
[Black "Schmitz, Thorsten"]
[Result "0-1"]
[Annotator "RC"]
[ECO "C60"]
[WhiteElo "1972"]
[BlackElo "2218"]
[PlyCount "126"]
[EventDate "2024.08.02"]
[EventType "swiss"]
[EventCountry "CZE"]
[SourceTitle "playchess.com"]
[Source "ChessBase"]
[SourceQuality "1"]
[TimeControl "40/5400+30:1800+30"]

1. e4 {[%emt 0:00:10]} e5 {[%emt 0:00:14]} 2. Nf3 {[%emt 0:00:27]} Nc6 {[%emt 0:00:07]} 3. Bb5 {[%emt 0:00:38]} g6 {[%emt 0:00:07]} 4. O-O {[%emt 0:04:31]} Bg7 {[%emt 0:00:05]} 5. c3 {[%emt 0:01:56]} a6 {[%emt 0:00:06]} 6. Ba4 {[%emt 0:00:30]} b5 {[%emt 0:00:07]} 7. Bb3 {[%emt 0:00:49]} Na5 {[%emt 0:00:13]} 8. Bc2 {[%emt 0:01:03]} Ne7 {[%emt 0:00:06]} 9. d4 {[%emt 0:02:18]} exd4 {[%emt 0:00:07]} 10. cxd4 {[%emt 0:02:55]} O-O {[%emt 0:00:08]} 11. Nbd2 {[%emt 0:12:56]} d6 {[%emt 0:08:03]} 12. Rb1 {[%emt 0:01:45]} Nac6 {[%emt 0:05:00]} 13. b4 {[%emt 0:15:58]} Nxd4 {[%emt 0:05:04]} 14. Nxd4 {[%emt 0:00:22]} Bxd4 {[%emt 0:00:10]} 15. Nb3 {[%emt 0:00:39]} Bg7 {[%emt 0:02:46]} 16. Bg5 {[%emt 0:04:53]} h6 {[%emt 0:03:39]} 17. Be3 {[%emt 0:00:50]} Nc6 {[%emt 0:22:05]} 18. Qd2 {[%emt 0:01:44]} g5 {[%emt 0:03:22]} 19. f4 {[%emt 0:07:35]} gxf4 {[%emt 0:01:16]} 20. Bxf4 {[%emt 0:00:12]} Qh4 {[%emt 0:00:38]} 21. Bg3 {[%emt 0:02:01]} Qh5 {[%emt 0:01:45]} 22. e5 {[%emt 0:08:33]} Nxe5 {[%emt 0:08:19]} 23. Nd4 {[%emt 0:03:29]} Nc4 {[%emt 0:07:15]} 24. Qd3 {[%emt 0:01:45]} Qg6 {[%emt 0:00:55]} 25. Nf5 {[%emt 0:02:56]} Bxf5 {[%emt 0:01:41]} 26. Rxf5 {[%emt 0:00:01]} Rae8 {[%emt 0:00:47]} 27. Bf2 {[%emt 0:16:37]} Re5 {[%emt 0:04:09]} 28. Rxf7 {[%emt 0:03:06]} Qxd3 {[%emt 0:00:26]} 29. Rxf8+ {[%emt 0:00:01]} Bxf8 {[%emt 0:07:00]} 30. Bxd3 {[%emt 0:00:02]} d5 {[%emt 0:00:39]} 31. Bd4 {[%emt 0:02:18]} Re6 {[%emt 0:09:38]} 32. Kf2 {[%emt 0:02:28]} Bd6 {[%emt 0:03:07]} 33. Bf5 {[%emt 0:00:25]} Re8 {[%emt 0:00:54]} 34. h3 {[%emt 0:00:35]} Nd2 {[%emt 0:00:38]} 35. Rb2 {[%emt 0:00:39]} Ne4+ {[%emt 0:00:25]} 36. Kf3 {[%emt 0:00:41]} Ng3 {[%emt 0:03:51]} 37. Bb1 {[%emt 0:00:38]} Rf8+ {[%emt 0:00:49]} 38. Ke3 {[%emt 0:00:23]} Nf5+ {[%emt 0:01:02]} 39. Kd3 {[%emt 0:00:04]} Nxd4 {[%emt 0:01:08]} 40. Kxd4 {[%emt 0:00:01]} c6 {[%emt 0:01:00]} 41. a3 {[%emt 0:02:19]} Rf4+ {[%emt 0:05:26]} 42. Kd3 {[%emt 0:00:55]} a5 {[%emt 0:08:33]} 43. Rc2 {[%emt 0:07:12]} Rc4 {[%emt 0:00:22]} 44. bxa5 {[%emt 0:04:58]} Kf7 {[%emt 0:03:55]} 45. a4 {[%emt 0:07:15]} Rxc2 {[%emt 0:03:20]} 46. Bxc2 {[%emt 0:00:01]} b4 {[%emt 0:00:47]} 47. a6 {[%emt 0:01:57]} Bc5 {[%emt 0:00:21]} 48. Bd1 {[%emt 0:00:51]} Ba7 {[%emt 0:02:16]} 49. Bb3 {[%emt 0:03:40]} Ke6 {[%emt 0:00:12]} 50. g4 {[%emt 0:02:09]} Ke5 {[%emt 0:00:47]} 51. h4 {[%emt 0:01:03]} Kf4 {[%emt 0:00:13]} 52. g5 {[%emt 0:00:04]} hxg5 {[%emt 0:00:08]} 53. hxg5 {[%emt 0:00:05]} Kxg5 {[%emt 0:00:09]} 54. a5 {[%emt 0:03:58]} Kf6 {[%emt 0:00:07]} 55. Ba4 {[%emt 0:00:33]} c5 {[%emt 0:00:06]} 56. Bb5 {[%emt 0:00:36]} b3 {[%emt 0:01:30]} 57. Kc3 {[%emt 0:01:18]} c4 {[%emt 0:00:07]} 58. Bc6 {[%emt 0:01:02]} Ke5 {[%emt 0:00:07]} 59. Be8 {[%emt 0:00:28]} Kd6 {[%emt 0:00:23]} 60. Bf7 {[%emt 0:00:35]} Kc5 {[%emt 0:00:07]} 61. Bg8 {[%emt 0:00:23]} d4+ {[%emt 0:00:58]} 62. Kb2 {[%emt 0:00:00]} Kb4 {[%emt 0:00:11]} 63. Bh7 {[%emt 0:00:20]} d3 {[%emt 0:01:13]} 0-1

[Event "Summer Prague Open-A 2024"]
[Site "Prague"]
[Date "2024.08.03"]
[Round "2.20"]
[White "Golenia, Wojciech"]
[Black "Radovic, Stefan"]
[Result "1-0"]
[Annotator "ChessBase"]
[ECO "D30"]
[WhiteElo "2212"]
[BlackElo "1967"]
[PlyCount "59"]
[EventDate "2024.08.02"]
[EventType "swiss"]
[EventCountry "CZE"]
[SourceTitle "playchess.com"]
[Source "ChessBase"]
[SourceQuality "1"]
[TimeControl "40/5400+30:1800+30"]

1. d4 {[%emt 0:02:14]} d5 {[%emt 0:00:06]} 2. c4 {[%emt 0:00:07]} e6 {[%emt 0:00:04]} 3. Nf3 {[%emt 0:00:07]} Nf6 {[%emt 0:00:06]} 4. g3 {[%emt 0:00:07]} Bb4+ {[%emt 0:00:18]} 5. Bd2 {[%emt 0:00:23]} Be7 {[%emt 0:00:05]} 6. Bg2 {[%emt 0:02:27]} O-O {[%emt 0:00:06]} 7. O-O {[%emt 0:00:28]} c6 {[%emt 0:00:04]} 8. Qc2 {[%emt 0:00:44]} Nbd7 {[%emt 0:00:06]} 9. Rd1 {[%emt 0:00:46]} b6 {[%emt 0:00:15]} 10. Bf4 {[%emt 0:02:58]} Ba6 {[%emt 0:00:13]} 11. Nbd2 {[%emt 0:03:37]} Rc8 {[%emt 0:16:51]} 12. Rac1 {[%emt 0:17:50]} dxc4 {[%emt 0:10:38]} 13. Nxc4 {[%emt 0:02:17]} Nd5 14. Bd6 {[%emt 0:14:06]} Bxc4 {[%emt 0:12:32]} 15. Bxe7 {[%emt 0:00:24]} Qxe7 {[%emt 0:00:20]} 16. Qxc4 {[%emt 0:00:10]} c5 {[%emt 0:16:25]} 17. e4 {[%emt 0:09:50]} N5f6 {[%emt 0:02:47]} 18. e5 {[%emt 0:05:22]} Nd5 {[%emt 0:01:08]} 19. a3 {[%emt 0:02:23]} h6 {[%emt 0:05:40]} 20. Qa6 {[%emt 0:01:45]} Nb8 {[%emt 0:00:41]} 21. Qe2 {[%emt 0:00:43]} Nc6 {[%emt 0:07:12]} 22. dxc5 {[%emt 0:01:06]} bxc5 {[%emt 0:00:09]} 23. Rc2 {[%emt 0:04:17]} Nb6 {[%emt 0:16:21]} 24. Qe4 {[%emt 0:08:13]} Rfd8 {[%emt 0:02:42]} 25. Rxd8+ {[%emt 0:00:55]} Nxd8 {[%emt 0:00:38]} 26. h4 {[%emt 0:01:24]} Nc6 {[%emt 0:02:59]} 27. Bf1 {[%emt 0:00:27]} Nd5 {[%emt 0:01:55]} 28. Bc4 {[%emt 0:02:37]} Nd4 {[%emt 0:01:14]} 29. Nxd4 {[%emt 0:00:25]} cxd4 {[%emt 0:00:07]} 30. Bd3 {[%emt 0:00:16]} 1-0

[Event "Summer Prague Open-A 2024"]
[Site "Prague"]
[Date "2024.08.03"]
[Round "2.21"]
[White "Omarsson, Adam"]
[Black "Jun, Rudolf"]
[Result "1-0"]
[Annotator "RC"]
[ECO "E97"]
[WhiteElo "1970"]
[BlackElo "2198"]
[PlyCount "97"]
[EventDate "2024.08.02"]
[EventType "swiss"]
[EventCountry "CZE"]
[SourceTitle "playchess.com"]
[Source "ChessBase"]
[SourceQuality "1"]
[TimeControl "40/5400+30:1800+30"]

1. d4 {[%emt 0:00:02]} Nf6 {[%emt 0:00:18]} 2. c4 {[%emt 0:00:05]} g6 {[%emt 0:00:23]} 3. Nc3 {[%emt 0:00:10]} Bg7 {[%emt 0:00:07]} 4. e4 {[%emt 0:00:08]} d6 {[%emt 0:00:05]} 5. Nf3 {[%emt 0:02:24]} O-O {[%emt 0:03:49]} 6. Be2 {[%emt 0:00:08]} e5 {[%emt 0:00:10]} 7. O-O {[%emt 0:00:12]} Nc6 {[%emt 0:00:03]} 8. d5 {[%emt 0:00:07]} Ne7 {[%emt 0:00:05]} 9. b4 {[%emt 0:00:11]} a5 {[%emt 0:00:04]} 10. Ba3 {[%emt 0:05:26]} axb4 {[%emt 0:01:12]} 11. Bxb4 {[%emt 0:00:06]} Nd7 {[%emt 0:00:09]} 12. a4 {[%emt 0:01:58]} h6 {[%emt 0:00:40]} 13. Nd2 {[%emt 0:04:02]} f5 {[%emt 0:02:29]} 14. Nb3 {[%emt 0:00:28]} b6 {[%emt 0:02:46]} 15. a5 {[%emt 0:01:22]} Nc5 {[%emt 0:00:54]} 16. Qc2 {[%emt 0:02:36]} f4 {[%emt 0:01:43]} 17. f3 {[%emt 0:00:19]} g5 {[%emt 0:03:05]} 18. axb6 {[%emt 0:09:29]} Rxa1 {[%emt 0:00:04]} 19. Rxa1 {[%emt 0:00:09]} cxb6 {[%emt 0:00:05]} 20. Nb5 {[%emt 0:02:52]} g4 {[%emt 0:03:59]} 21. fxg4 {[%emt 0:03:30]} f3 {[%emt 0:01:38]} 22. Bxf3 {[%emt 0:01:05]} Ng6 {[%emt 0:00:37]} 23. Nxc5 {[%emt 0:02:39]} bxc5 {[%emt 0:00:50]} 24. Be1 {[%emt 0:00:30]} Qf6 {[%emt 0:01:54]} 25. Ra8 {[%emt 0:03:03]} Nf4 {[%emt 0:03:47]} 26. Na7 {[%emt 0:05:01]} Bd7 {[%emt 0:01:16]} 27. Rxf8+ {[%emt 0:00:18]} Qxf8 {[%emt 0:00:15]} 28. Nb5 {[%emt 0:00:53]} Nh3+ {[%emt 0:02:35]} 29. gxh3 {[%emt 0:11:48]} Qxf3 {[%emt 0:00:07]} 30. Qc3 {[%emt 0:00:20]} Qxe4 {[%emt 0:00:48]} 31. Nxd6 {[%emt 0:00:14]} Qg6 {[%emt 0:00:25]} 32. Nb5 {[%emt 0:02:29]} e4 {[%emt 0:02:37]} 33. Qg3 {[%emt 0:01:11]} e3 {[%emt 0:01:27]} 34. Nd6 {[%emt 0:11:21]} Qb1 {[%emt 0:06:16]} 35. Kg2 {[%emt 0:09:17]} Qc2+ {[%emt 0:02:22]} 36. Kf3 {[%emt 0:10:40]} Bd4 {[%emt 0:24:20]} 37. Nf5 {[%emt 0:02:10]} Qd1+ {[%emt 0:03:15]} 38. Kf4 {[%emt 0:00:54]} e2 {[%emt 0:07:45]} 39. Nxd4 {[%emt 0:01:04]} cxd4 {[%emt 0:00:59]} 40. Ke4 {[%emt 0:00:34]} d3 {[%emt 0:02:50]} 41. Qb8+ {[%emt 0:30:14]} Kh7 {[%emt 0:31:30]} 42. Qb4 {[%emt 0:00:06]} Kg8 {[%emt 0:04:01]} 43. c5 {[%emt 0:01:20]} Bb5 {[%emt 0:03:12]} 44. c6 {[%emt 0:01:24]} Qc2 {[%emt 0:00:46]} 45. Ke5 {[%emt 0:00:32]} Qc1 {[%emt 0:01:35]} 46. Kd6 {[%emt 0:00:40]} Qa1 {[%emt 0:03:25]} 47. Kc5 {[%emt 0:01:17]} Ba6 {[%emt 0:00:47]} 48. d6 {[%emt 0:01:10]} Kf7 {[%emt 0:04:28]} 49. d7 {[%emt 0:00:54]} 1-0

[Event "Summer Prague Open-A 2024"]
[Site "Prague"]
[Date "2024.08.03"]
[Round "2.22"]
[White "Stocek, Martin"]
[Black "Dome, Michal"]
[Result "0-1"]
[Annotator "ChessBase"]
[ECO "D37"]
[WhiteElo "2176"]
[BlackElo "1965"]
[PlyCount "70"]
[EventDate "2024.08.02"]
[EventType "swiss"]
[EventCountry "CZE"]
[SourceTitle "playchess.com"]
[Source "ChessBase"]
[SourceQuality "1"]
[TimeControl "40/5400+30:1800+30"]

1. d4 {[%emt 0:00:07]} d5 {[%emt 0:00:09]} 2. c4 {[%emt 0:00:06]} e6 {[%emt 0:00:06]} 3. Nc3 {[%emt 0:00:06]} Nf6 {[%emt 0:00:05]} 4. Nf3 {[%emt 0:00:13]} Be7 {[%emt 0:00:31]} 5. Bf4 {[%emt 0:00:09]} O-O {[%emt 0:00:17]} 6. e3 {[%emt 0:00:10]} b6 {[%emt 0:02:14]} 7. Bd3 {[%emt 0:04:43]} dxc4 {[%emt 0:02:02]} 8. Bxc4 {[%emt 0:00:03]} Bb7 {[%emt 0:00:10]} 9. O-O {[%emt 0:00:38]} a6 {[%emt 0:11:11]} 10. Qe2 {[%emt 0:11:34]} b5 {[%emt 0:03:22]} 11. Bd3 {[%emt 0:03:41]} c5 {[%emt 0:02:20]} 12. Rad1 {[%emt 0:14:45]} Qb6 {[%emt 0:03:47]} 13. Bb1 {[%emt 0:02:27]} Nc6 {[%emt 0:12:43]} 14. a3 {[%emt 0:12:55]} Rfd8 {[%emt 0:03:00]} 15. dxc5 {[%emt 0:01:01]} Bxc5 {[%emt 0:01:28]} 16. b4 {[%emt 0:00:26]} Be7 {[%emt 0:00:30]} 17. e4 {[%emt 0:02:30]} Na7 {[%emt 0:17:58]} 18. Be3 {[%emt 0:15:06]} Qc7 {[%emt 0:02:25]} 19. Rc1 {[%emt 0:01:59]} Nc6 {[%emt 0:02:47]} 20. Qc2 {[%emt 0:09:32]} Rac8 {[%emt 0:04:29]} 21. Qb3 {[%emt 0:04:56]} Qb8 {[%emt 0:03:38]} 22. Rfe1 {[%emt 0:01:07]} Rd7 {[%emt 0:02:02]} 23. Bg5 {[%emt 0:01:24]} Ne5 {[%emt 0:04:33]} 24. a4 {[%emt 0:05:28]} Nxf3+ {[%emt 0:01:50]} 25. gxf3 {[%emt 0:00:02]} Ng4 {[%emt 0:03:28]} 26. fxg4 {[%emt 0:01:05]} Bxg5 {[%emt 0:00:06]} 27. Rcd1 {[%emt 0:01:36]} Bd2 {[%emt 0:06:53]} 28. Ne2 {[%emt 0:00:22]} Rcd8 {[%emt 0:00:40]} 29. Rf1 {[%emt 0:00:15]} bxa4 {[%emt 0:00:35]} 30. Qxa4 {[%emt 0:00:29]} Qa8 {[%emt 0:02:21]} 31. f3 {[%emt 0:03:36]} Bc6 {[%emt 0:00:17]} 32. Qc2 {[%emt 0:01:00]} Bb5 {[%emt 0:00:39]} 33. Rf2 {[%emt 0:01:10]} Bxe2 {[%emt 0:00:47]} 34. e5 {[%emt 0:00:21]} g6 {[%emt 0:01:11]} 35. Rxe2 {[%emt 0:00:45]} Be3+ {[%emt 0:00:05]} 0-1

[Event "Summer Prague Open-A 2024"]
[Site "Prague"]
[Date "2024.08.03"]
[Round "2.23"]
[White "Zelezny, Jan"]
[Black "Toure, Vasanth"]
[Result "0-1"]
[Annotator "RC"]
[ECO "C50"]
[WhiteElo "1965"]
[BlackElo "2176"]
[PlyCount "118"]
[EventDate "2024.08.02"]
[EventType "swiss"]
[EventCountry "CZE"]
[SourceTitle "playchess.com"]
[Source "ChessBase"]
[SourceQuality "1"]
[TimeControl "40/5400+30:1800+30"]

1. e4 {[%emt 0:00:03]} e5 {[%emt 0:00:05]} 2. Nf3 {[%emt 0:00:04]} Nc6 {[%emt 0:00:05]} 3. Bc4 {[%emt 0:00:04]} Bc5 {[%emt 0:00:07]} 4. O-O {[%emt 0:00:07]} Nf6 {[%emt 0:00:03]} 5. d3 {[%emt 0:00:07]} d6 {[%emt 0:02:13]} 6. h3 {[%emt 0:00:31]} h6 {[%emt 0:00:56]} 7. c3 {[%emt 0:00:11]} a6 {[%emt 0:00:06]} 8. a4 {[%emt 0:00:25]} Ba7 {[%emt 0:00:11]} 9. Nbd2 {[%emt 0:00:37]} O-O {[%emt 0:00:13]} 10. Re1 {[%emt 0:00:13]} Ne7 {[%emt 0:07:47]} 11. Nf1 {[%emt 0:00:26]} b5 {[%emt 0:01:12]} 12. axb5 {[%emt 0:04:24]} axb5 {[%emt 0:01:02]} 13. Ba2 {[%emt 0:00:09]} Ng6 {[%emt 0:07:50]} 14. Be3 {[%emt 0:00:23]} Bxe3 {[%emt 0:00:27]} 15. Nxe3 {[%emt 0:02:37]} Bb7 {[%emt 0:12:40]} 16. g3 {[%emt 0:05:11]} d5 {[%emt 0:16:31]} 17. exd5 {[%emt 0:05:08]} Nxd5 {[%emt 0:00:18]} 18. Nxd5 {[%emt 0:01:47]} Bxd5 {[%emt 0:00:03]} 19. Bxd5 {[%emt 0:00:06]} Rxa1 {[%emt 0:00:44]} 20. Qxa1 {[%emt 0:03:05]} Qxd5 {[%emt 0:00:02]} 21. Qd1 {[%emt 0:06:57]} c5 {[%emt 0:11:54]} 22. Qe2 {[%emt 0:04:15]} Re8 {[%emt 0:00:12]} 23. Qe4 {[%emt 0:02:48]} Qd7 {[%emt 0:00:13]} 24. Kh2 {[%emt 0:04:00]} f5 {[%emt 0:08:07]} 25. Qe3 {[%emt 0:04:11]} Qd6 {[%emt 0:00:10]} 26. d4 {[%emt 0:02:36]} cxd4 {[%emt 0:03:27]} 27. Nxd4 {[%emt 0:01:56]} Qd7 {[%emt 0:00:17]} 28. Qe2 {[%emt 0:03:43]} b4 {[%emt 0:12:24]} 29. Qc4+ {[%emt 0:07:36]} Kh7 {[%emt 0:02:16]} 30. Qc6 {[%emt 0:01:26]} Qf7 {[%emt 0:06:28]} 31. cxb4 {[%emt 0:06:12]} Rd8 {[%emt 0:02:22]} 32. Qe6 {[%emt 0:05:24]} Qa7 {[%emt 0:00:55]} 33. Rd1 {[%emt 0:07:51]} Rxd4 {[%emt 0:02:38]} 34. Rxd4 {[%emt 0:00:09]} Qxd4 {[%emt 0:00:12]} 35. Qxf5 {[%emt 0:00:04]} Qxb4 {[%emt 0:00:32]} 36. h4 {[%emt 0:00:15]} Qf8 {[%emt 0:00:25]} 37. Qc2 {[%emt 0:02:26]} h5 {[%emt 0:02:51]} 38. Qe2 {[%emt 0:02:16]} Kh6 {[%emt 0:00:09]} 39. Qe3+ {[%emt 0:00:31]} Kh7 {[%emt 0:00:06]} 40. Qe2 {[%emt 0:00:03]} Qf5 {[%emt 0:01:44]} 41. b4 {[%emt 0:32:54]} Qg4 {[%emt 0:07:23]} 42. Qd2 {[%emt 0:00:00]} e4 {[%emt 0:03:12]} 43. b5 {[%emt 0:00:00]} Ne5 {[%emt 0:00:23]} 44. Qd5 {[%emt 0:00:00]} Qf5 {[%emt 0:09:15]} 45. Kg2 {[%emt 0:00:00]} Qf3+ {[%emt 0:03:16]} 46. Kg1 {[%emt 0:00:00]} Nd3 {[%emt 0:00:08]} 47. Qd4 {[%emt 0:00:00]} Ne1 {[%emt 0:00:33]} 48. Kf1 {[%emt 0:00:00]} Qh1+ {[%emt 0:00:22]} 49. Ke2 {[%emt 0:00:00]} Nd3 {[%emt 0:00:10]} 50. Qc3 {[%emt 0:00:00]} Qf3+ {[%emt 0:01:14]} 51. Kd2 {[%emt 0:00:00]} Qxf2+ {[%emt 0:00:11]} 52. Kd1 {[%emt 0:00:00]} Qxg3 {[%emt 0:02:03]} 53. Qd4 {[%emt 0:00:00]} Qe1+ {[%emt 0:04:42]} 54. Kc2 {[%emt 0:00:00]} Qc1+ {[%emt 0:00:11]} 55. Kb3 {[%emt 0:00:00]} Qb1+ {[%emt 0:00:10]} 56. Kc4 {[%emt 0:00:00]} Qb4+ {[%emt 0:01:02]} 57. Kd5 {[%emt 0:00:00]} Qxb5+ {[%emt 0:00:06]} 58. Kxe4 {[%emt 0:00:00]} Nc5+ {[%emt 0:00:05]} 59. Kf3 {[%emt 0:00:00]} Qd3+ 0-1

[Event "Summer Prague Open-A 2024"]
[Site "Prague"]
[Date "2024.08.03"]
[Round "2.24"]
[White "Pujari, Rucha"]
[Black "Davidek, Zdenek"]
[Result "1/2-1/2"]
[Annotator "ChessBase"]
[ECO "D77"]
[WhiteElo "2175"]
[BlackElo "1964"]
[PlyCount "64"]
[EventDate "2024.08.02"]
[EventType "swiss"]
[EventCountry "CZE"]
[SourceTitle "playchess.com"]
[Source "ChessBase"]
[SourceQuality "1"]
[TimeControl "40/5400+30:1800+30"]

1. d4 {[%emt 0:00:31]} Nf6 {[%emt 0:00:11]} 2. c4 {[%emt 0:00:11]} g6 {[%emt 0:00:31]} 3. Nf3 {[%emt 0:00:16]} Bg7 {[%emt 0:00:11]} 4. g3 {[%emt 0:00:10]} O-O {[%emt 0:00:06]} 5. Bg2 {[%emt 0:00:10]} d5 {[%emt 0:00:21]} 6. O-O {[%emt 0:00:35]} dxc4 {[%emt 0:00:25]} 7. Na3 {[%emt 0:00:30]} c3 {[%emt 0:01:00]} 8. bxc3 {[%emt 0:00:03]} c5 {[%emt 0:00:06]} 9. e3 {[%emt 0:00:14]} Nc6 {[%emt 0:02:28]} 10. Qe2 {[%emt 0:00:09]} Bf5 {[%emt 0:35:09]} 11. Rd1 {[%emt 0:01:12]} Qc7 {[%emt 0:08:05]} 12. Nb5 {[%emt 0:13:18]} Qb6 {[%emt 0:05:55]} 13. a4 {[%emt 0:10:39]} a6 {[%emt 0:05:30]} 14. dxc5 {[%emt 0:10:51]} Qa5 {[%emt 0:03:09]} 15. Nbd4 {[%emt 0:07:11]} Be4 {[%emt 0:00:54]} 16. Nd2 {[%emt 0:05:39]} Bxg2 {[%emt 0:00:33]} 17. Nc4 {[%emt 0:10:44]} Nxd4 {[%emt 0:05:14]} 18. cxd4 {[%emt 0:11:40]} Qc3 {[%emt 0:05:34]} 19. Kxg2 {[%emt 0:05:34]} Qxa1 {[%emt 0:00:24]} 20. Qc2 {[%emt 0:02:32]} b5 {[%emt 0:00:46]} 21. cxb6 {[%emt 0:04:42]} Rac8 {[%emt 0:00:39]} 22. b7 {[%emt 0:03:23]} Rc7 {[%emt 0:10:52]} 23. Qb3 {[%emt 0:10:18]} Rb8 {[%emt 0:09:54]} 24. Ba3 {[%emt 0:00:12]} Qxd1 {[%emt 0:00:22]} 25. Qxd1 {[%emt 0:00:02]} Rxc4 {[%emt 0:00:06]} 26. Bc5 {[%emt 0:00:39]} Rxb7 {[%emt 0:01:56]} 27. Qf3 {[%emt 0:00:02]} Rb8 {[%emt 0:02:17]} 28. Qc6 {[%emt 0:00:04]} Rc2 {[%emt 0:01:02]} 29. Qc7 {[%emt 0:02:46]} Rbb2 {[%emt 0:00:38]} 30. Qd8+ {[%emt 0:00:28]} Bf8 {[%emt 0:00:01]} 31. Bxe7 {[%emt 0:00:28]} Rxf2+ {[%emt 0:00:03]} 32. Kg1 {[%emt 0:00:05]} Rg2+ {[%emt 0:00:13]} 1/2-1/2

[Event "Summer Prague Open-A 2024"]
[Site "Prague"]
[Date "2024.08.03"]
[Round "2.25"]
[White "Zhakan, Erasyl"]
[Black "Czaeczine, Anne"]
[Result "0-1"]
[Annotator "ChessBase"]
[ECO "A06"]
[WhiteElo "1962"]
[BlackElo "2172"]
[PlyCount "74"]
[EventDate "2024.08.02"]
[EventType "swiss"]
[EventCountry "CZE"]
[SourceTitle "playchess.com"]
[Source "ChessBase"]
[SourceQuality "1"]
[TimeControl "40/5400+30:1800+30"]

1. Nf3 {[%emt 0:02:16]} d5 {[%emt 0:00:07]} 2. b3 {[%emt 0:00:08]} c5 {[%emt 0:00:08]} 3. e3 {[%emt 0:00:27]} Nc6 {[%emt 0:04:58]} 4. Bb2 {[%emt 0:01:22]} Nf6 {[%emt 0:07:33]} 5. Bb5 {[%emt 0:00:39]} Bg4 {[%emt 0:04:56]} 6. h3 {[%emt 0:01:49]} Bxf3 {[%emt 0:00:05]} 7. Bxc6+ {[%emt 0:00:33]} bxc6 {[%emt 0:00:05]} 8. Qxf3 {[%emt 0:00:03]} Rb8 {[%emt 0:04:15]} 9. O-O {[%emt 0:03:30]} e6 {[%emt 0:01:58]} 10. d3 {[%emt 0:01:02]} a5 {[%emt 0:05:32]} 11. a4 {[%emt 0:00:28]} Be7 {[%emt 0:16:43]} 12. Nd2 {[%emt 0:00:31]} O-O {[%emt 0:00:07]} 13. Qg3 {[%emt 0:05:48]} Nh5 {[%emt 0:04:33]} 14. Qg4 {[%emt 0:02:13]} g6 {[%emt 0:00:16]} 15. Qe2 {[%emt 0:22:49]} Bf6 {[%emt 0:07:04]} 16. Bxf6 {[%emt 0:01:39]} Qxf6 {[%emt 0:00:04]} 17. Nf3 {[%emt 0:07:07]} Rb4 {[%emt 0:04:26]} 18. d4 {[%emt 0:03:05]} cxd4 {[%emt 0:05:39]} 19. exd4 {[%emt 0:00:20]} Nf4 {[%emt 0:00:07]} 20. Qe3 {[%emt 0:00:28]} c5 {[%emt 0:01:06]} 21. g3 {[%emt 0:05:21]} Nh5 {[%emt 0:05:58]} 22. Ne5 {[%emt 0:07:30]} cxd4 {[%emt 0:01:07]} 23. Qe1 {[%emt 0:00:08]} Rc8 {[%emt 0:05:17]} 24. Nd3 {[%emt 0:01:31]} Rbb8 {[%emt 0:01:36]} 25. Ra2 {[%emt 0:13:26]} Rc3 {[%emt 0:00:52]} 26. Qe2 {[%emt 0:04:12]} Rbc8 {[%emt 0:07:38]} 27. b4 {[%emt 0:01:17]} axb4 {[%emt 0:00:04]} 28. Nxb4 {[%emt 0:00:22]} Nxg3 {[%emt 0:04:03]} 29. fxg3 {[%emt 0:00:26]} Rxg3+ {[%emt 0:00:03]} 30. Kh1 {[%emt 0:03:57]} Qh4 {[%emt 0:00:58]} 31. Rf2 {[%emt 0:01:41]} Rxh3+ {[%emt 0:00:25]} 32. Rh2 {[%emt 0:00:09]} Rxh2+ {[%emt 0:00:05]} 33. Qxh2 {[%emt 0:00:01]} Qe1+ {[%emt 0:00:06]} 34. Qg1 {[%emt 0:00:05]} Qxb4 {[%emt 0:00:06]} 35. a5 {[%emt 0:00:07]} Qc3 {[%emt 0:02:58]} 36. Qc1 {[%emt 0:02:06]} Qh3+ {[%emt 0:00:47]} 37. Kg1 {[%emt 0:00:02]} Rc3 {[%emt 0:00:12]} 0-1